[Event "AUT-ch U18 Boys 2022"]
[Site "Sankt Veit an der Glan"]
[Date "2022.04.11"]
[Round "3"]
[White "Ilijic, Mihajilo"]
[Black "Kristoferitsch, Daniel"]
[Result "0-1"]
[ECO "B43"]
[WhiteElo "2079"]
[BlackElo "2253"]
[Annotator "RC"]
[PlyCount "96"]
[EventDate "2022.04.11"]
[EventType "swiss"]
[EventCountry "AUT"]
[SourceTitle "playchess.com"]
[Source "ChessBase"]
[SourceQuality "1"]
[TimeControl "5400+30"]

1. e4 {[%emt 0:00:04]} c5 {[%emt 0:00:07]} 2. Nf3 {[%emt 0:00:09]} e6 {[%emt 0:00:08]} 3. Nc3 {[%emt 0:00:11]} a6 {[%emt 0:00:36]} 4. d4 {[%emt 0:00:06]} cxd4 {[%emt 0:00:05]} 5. Nxd4 {[%emt 0:00:06]} b5 {[%emt 0:00:07]} 6. Bd3 {[%emt 0:01:35]} Qb6 {[%emt 0:00:08]} 7. Nb3 {[%emt 0:04:33]} Qc7 {[%emt 0:00:08]} 8. O-O {[%emt 0:02:27]} Bb7 {[%emt 0:00:16]} 9. Be3 {[%emt 0:04:26]} Nf6 {[%emt 0:01:30]} 10. a3 {[%emt 0:05:57]} Be7 {[%emt 0:01:37]} 11. Qe2 {[%emt 0:10:40]} O-O {[%emt 0:04:31]} 12. Rad1 {[%emt 0:01:28]} d6 {[%emt 0:00:19]} 13. f3 {[%emt 0:05:40]} Nbd7 {[%emt 0:03:43]} 14. Qf2 {[%emt 0:00:21]} Rac8 {[%emt 0:01:35]} 15. Rd2 {[%emt 0:04:22]} d5 {[%emt 0:10:40]} 16. exd5 {[%emt 0:06:48]} Nxd5 {[%emt 0:00:11]} 17. Nxd5 {[%emt 0:00:56]} Bxd5 {[%emt 0:00:11]} 18. Rfd1 {[%emt 0:08:02]} Ne5 {[%emt 0:02:53]} 19. Be2 {[%emt 0:04:44]} Nc4 {[%emt 0:02:50]} 20. Bxc4 {[%emt 0:00:36]} bxc4 {[%emt 0:00:17]} 21. Nd4 {[%emt 0:01:24]} c3 {[%emt 0:02:07]} 22. bxc3 {[%emt 0:01:39]} Bxa3 {[%emt 0:11:19]} 23. Ne2 {[%emt 0:02:35]} Bd6 {[%emt 0:09:29]} 24. Qh4 {[%emt 0:01:54]} Be5 {[%emt 0:07:29]} 25. Bd4 {[%emt 0:04:13]} a5 {[%emt 0:01:48]} 26. Bxe5 {[%emt 0:04:38]} Qxe5 {[%emt 0:00:09]} 27. Qd4 {[%emt 0:00:39]} Qb8 {[%emt 0:02:21]} 28. Qh4 {[%emt 0:04:12]} Qa7+ {[%emt 0:03:52]} 29. Qd4 {[%emt 0:01:51]} Qa8 {[%emt 0:02:00]} 30. Ra1 {[%emt 0:00:52]} Rc4 {[%emt 0:00:35]} 31. Qe3 {[%emt 0:00:15]} a4 {[%emt 0:00:22]} 32. Ra3 {[%emt 0:03:19]} Qb8 {[%emt 0:02:37]} 33. Rd4 {[%emt 0:00:43]} Qb5 {[%emt 0:03:00]} 34. Kf2 {[%emt 0:04:26]} Ra8 {[%emt 0:01:11]} 35. Rd1 {[%emt 0:07:17]} Qb2 {[%emt 0:01:54]} 36. Qc1 {[%emt 0:00:20]} Qb6+ {[%emt 0:01:02]} 37. Qe3 {[%emt 0:00:44]} Qd6 {[%emt 0:00:25]} 38. Rda1 {[%emt 0:00:47]} Qxh2 {[%emt 0:00:17]} 39. Ng3 {[%emt 0:00:47]} Qh4 {[%emt 0:00:58]} 40. Qe5 {[%emt 0:03:05]} h6 {[%emt 0:11:56]} 41. Rh1 {[%emt 0:00:24]} Qe7 {[%emt 0:01:00]} 42. Nh5 {[%emt 0:01:38]} f6 {[%emt 0:00:26]} 43. Qg3 {[%emt 0:00:07]} e5 {[%emt 0:05:20]} 44. Rd1 {[%emt 0:00:24]} Rd8 {[%emt 0:00:29]} 45. Rda1 {[%emt 0:00:50]} Bc6 {[%emt 0:00:45]} 46. Kg1 {[%emt 0:00:32]} Be8 {[%emt 0:00:27]} 47. Qh3 {[%emt 0:00:24]} Bd7 {[%emt 0:04:04]} 48. Qg3 {[%emt 0:00:20]} Qf7 {[%emt 0:00:39]} 0-1

[Event "AUT-ch U18 Boys 2022"]
[Site "Sankt Veit an der Glan"]
[Date "2022.04.11"]
[Round "3"]
[White "Weichhart, Daniel"]
[Black "Cafasso, Elia"]
[Result "0-1"]
[ECO "E09"]
[WhiteElo "2032"]
[BlackElo "2061"]
[Annotator "NA RC"]
[PlyCount "40"]
[EventDate "2022.04.11"]
[EventType "swiss"]
[EventCountry "AUT"]
[SourceTitle "playchess.com"]
[Source "ChessBase"]
[SourceQuality "1"]
[TimeControl "5400+30"]

1. d4 {[%emt 0:00:04]} Nf6 {[%emt 0:00:05]} 2. Nf3 {[%emt 0:00:07]} e6 {[%emt 0:00:06]} 3. g3 {[%emt 0:00:05]} d5 {[%emt 0:00:07]} 4. Bg2 {[%emt 0:00:05]} Be7 {[%emt 0:00:46]} 5. c4 {[%emt 0:00:34]} c6 {[%emt 0:00:03]} 6. O-O {[%emt 0:00:10]} O-O {[%emt 0:00:15]} 7. Nbd2 {[%emt 0:00:09]} Nbd7 {[%emt 0:01:32]} 8. Qc2 {[%emt 0:00:07]} b6 {[%emt 0:01:20]} 9. e4 {[%emt 0:00:08]} dxe4 {[%emt 0:00:37]} 10. Nxe4 {[%emt 0:00:09]} Bb7 {[%emt 0:00:16]} 11. Ne5 {[%emt 0:06:24]} Nxe5 {[%emt 0:04:21]} 12. dxe5 {[%emt 0:00:09]} Nxe4 {[%emt 0:00:11]} 13. Qxe4 {[%emt 0:03:25]} Qc7 {[%emt 0:02:23]} 14. Be3 {[%emt 0:02:16]} Rab8 {[%emt 0:09:19]} 15. c5 {[%emt 0:06:22]} Bxc5 {[%emt 0:06:42]} 16. Bxc5 {[%emt 0:00:15]} bxc5 {[%emt 0:00:02]} 17. Rfc1 {[%emt 0:05:28]} Qb6 {[%emt 0:04:12]} 18. b3 {[%emt 0:05:36]} Rfd8 {[%emt 0:01:27]} 19. Qc2 {[%emt 0:04:39]} Rd4 {[%emt 0:03:31]} 20. Qxc5 {[%emt 0:03:12]} Rd1+ {[%emt 0:00:02]} 0-1

[Event "AUT-ch U18 Boys 2022"]
[Site "Sankt Veit an der Glan"]
[Date "2022.04.11"]
[Round "3"]
[White "Stadlinger, Matthias"]
[Black "Martetschlaeger, Stefan"]
[Result "1-0"]
[ECO "B31"]
[WhiteElo "2013"]
[BlackElo "1679"]
[Annotator "NA RC"]
[PlyCount "79"]
[EventDate "2022.04.11"]
[EventType "swiss"]
[EventCountry "AUT"]
[SourceTitle "playchess.com"]
[Source "ChessBase"]
[SourceQuality "1"]
[TimeControl "5400+30"]

1. e4 {[%emt 0:00:02]} c5 {[%emt 0:00:09]} 2. Nf3 {[%emt 0:00:04]} Nc6 {[%emt 0:00:10]} 3. Bb5 {[%emt 0:00:03]} g6 {[%emt 0:00:20]} 4. O-O {[%emt 0:00:05]} Bg7 {[%emt 0:00:14]} 5. c3 {[%emt 0:00:03]} Nf6 {[%emt 0:01:07]} 6. Re1 {[%emt 0:00:03]} O-O {[%emt 0:00:33]} 7. d4 {[%emt 0:00:19]} cxd4 {[%emt 0:00:45]} 8. cxd4 {[%emt 0:00:09]} a6 {[%emt 0:01:22]} 9. Bf1 {[%emt 0:04:47]} d6 {[%emt 0:04:21]} 10. h3 {[%emt 0:00:17]} b5 {[%emt 0:01:08]} 11. a4 {[%emt 0:07:50]} b4 {[%emt 0:05:31]} 12. b3 {[%emt 0:12:44]} a5 {[%emt 0:02:12]} 13. Bb2 {[%emt 0:00:54]} Bb7 {[%emt 0:03:58]} 14. Nbd2 {[%emt 0:04:40]} Rc8 {[%emt 0:05:41]} 15. Rc1 {[%emt 0:03:36]} e6 {[%emt 0:05:00]} 16. Bb5 {[%emt 0:12:09]} Nd7 {[%emt 0:13:28]} 17. Nc4 {[%emt 0:14:28]} Nf6 {[%emt 0:08:43]} 18. e5 {[%emt 0:11:35]} Ne8 {[%emt 0:05:45]} 19. Qe2 {[%emt 0:05:35]} d5 {[%emt 0:02:48]} 20. Ne3 {[%emt 0:02:16]} Qb6 {[%emt 0:04:42]} 21. Rc2 {[%emt 0:03:17]} Nc7 {[%emt 0:03:13]} 22. Bd3 {[%emt 0:02:46]} Ne7 {[%emt 0:01:28]} 23. Rec1 {[%emt 0:00:40]} Nf5 {[%emt 0:04:22]} 24. g4 {[%emt 0:00:09]} Nxe3 {[%emt 0:00:57]} 25. Qxe3 {[%emt 0:00:05]} f6 {[%emt 0:02:15]} 26. exf6 {[%emt 0:01:04]} Bxf6 {[%emt 0:00:36]} 27. Ne5 {[%emt 0:00:03]} Qd6 {[%emt 0:03:50]} 28. Rc5 {[%emt 0:01:25]} Qe7 {[%emt 0:05:03]} 29. Rxa5 {[%emt 0:01:25]} Bg5 {[%emt 0:01:30]} 30. Qe1 {[%emt 0:02:28]} Bxc1 {[%emt 0:00:45]} 31. Bxc1 {[%emt 0:00:02]} Qh4 {[%emt 0:02:02]} 32. Qe3 {[%emt 0:00:22]} Ne8 {[%emt 0:06:56]} 33. Bd2 {[%emt 0:00:53]} Nd6 {[%emt 0:00:32]} 34. Bxb4 {[%emt 0:01:40]} Rc1+ {[%emt 0:03:34]} 35. Kg2 {[%emt 0:00:07]} h5 {[%emt 0:00:50]} 36. Bxd6 {[%emt 0:01:16]} hxg4 {[%emt 0:01:10]} 37. Bxf8 {[%emt 0:00:27]} gxh3+ {[%emt 0:00:18]} 38. Kh2 {[%emt 0:00:26]} Ra1 {[%emt 0:01:30]} 39. Qf3 {[%emt 0:01:36]} Ra2 {[%emt 0:00:27]} 40. Qf7+ {[%emt 0:00:09]} 1-0

[Event "AUT-ch U18 Boys 2022"]
[Site "Sankt Veit an der Glan"]
[Date "2022.04.11"]
[Round "3"]
[White "Tumanyan, Gor"]
[Black "Hechl, Fabian"]
[Result "1-0"]
[ECO "C07"]
[WhiteElo "1818"]
[BlackElo "2023"]
[Annotator "NA RC"]
[PlyCount "63"]
[EventDate "2022.04.11"]
[EventType "swiss"]
[EventCountry "AUT"]
[SourceTitle "playchess.com"]
[Source "ChessBase"]
[SourceQuality "1"]
[TimeControl "5400+30"]

1. e4 {[%emt 0:00:02]} e6 {[%emt 0:00:04]} 2. d4 {[%emt 0:00:04]} d5 {[%emt 0:00:05]} 3. Nd2 {[%emt 0:00:04]} c5 {[%emt 0:00:08]} 4. Ngf3 {[%emt 0:00:07]} cxd4 {[%emt 0:00:11]} 5. exd5 {[%emt 0:00:08]} Qxd5 {[%emt 0:00:53]} 6. Bc4 {[%emt 0:00:14]} Qd6 {[%emt 0:00:19]} 7. O-O {[%emt 0:00:37]} Nf6 {[%emt 0:00:45]} 8. Nb3 {[%emt 0:00:28]} Nc6 {[%emt 0:00:05]} 9. Nbxd4 {[%emt 0:00:07]} Nxd4 {[%emt 0:00:04]} 10. Nxd4 {[%emt 0:00:11]} a6 {[%emt 0:00:05]} 11. Re1 {[%emt 0:00:53]} Qc7 {[%emt 0:00:04]} 12. Bb3 {[%emt 0:00:03]} Bd6 {[%emt 0:00:16]} 13. Nf5 {[%emt 0:01:08]} Bxh2+ {[%emt 0:00:09]} 14. Kh1 {[%emt 0:00:03]} O-O {[%emt 0:00:36]} 15. Nxg7 {[%emt 0:00:12]} Rd8 {[%emt 0:00:03]} 16. Qf3 {[%emt 0:00:44]} Kxg7 {[%emt 0:00:05]} 17. Bh6+ {[%emt 0:00:04]} Kg6 {[%emt 0:00:03]} 18. c3 {[%emt 0:00:19]} Nh5 {[%emt 0:00:37]} 19. Re4 {[%emt 0:49:36]} Kxh6 {[%emt 0:40:57]} 20. Rh4 {[%emt 0:01:58]} Qe5 {[%emt 0:02:02]} 21. g4 {[%emt 0:00:35]} Bd7 {[%emt 0:03:49]} 22. Qxf7 {[%emt 0:09:19]} Be8 {[%emt 0:05:50]} 23. Qf8+ {[%emt 0:04:35]} Qg7 {[%emt 0:01:30]} 24. Rxh5+ {[%emt 0:01:23]} Bxh5 {[%emt 0:04:20]} 25. g5+ {[%emt 0:00:06]} Kg6 {[%emt 0:18:54]} 26. Bc2+ {[%emt 0:00:14]} Kxg5 {[%emt 0:00:10]} 27. Qxg7+ {[%emt 0:00:05]} Bg6 {[%emt 0:00:42]} 28. Kxh2 {[%emt 0:01:07]} Rd5 {[%emt 0:04:53]} 29. Rg1+ {[%emt 0:01:13]} Kf4 {[%emt 0:00:19]} 30. Qf6+ {[%emt 0:01:09]} Bf5 {[%emt 0:00:23]} 31. Qg5+ {[%emt 0:00:11]} Ke5 {[%emt 0:00:22]} 32. Qg3+ {[%emt 0:00:16]} 1-0

[Event "AUT-ch U18 Boys 2022"]
[Site "Sankt Veit an der Glan"]
[Date "2022.04.11"]
[Round "3"]
[White "Schilcher, Marcel"]
[Black "Lotz, Dominik"]
[Result "0-1"]
[ECO "A40"]
[WhiteElo "1671"]
[BlackElo "1583"]
[Annotator "NA RC"]
[PlyCount "116"]
[EventDate "2022.04.11"]
[EventType "swiss"]
[EventCountry "AUT"]
[SourceTitle "playchess.com"]
[Source "ChessBase"]
[SourceQuality "1"]
[TimeControl "5400+30"]

1. d4 {[%emt 0:00:03]} c6 {[%emt 0:00:06]} 2. Bf4 {[%emt 0:00:09]} Nf6 {[%emt 0:00:06]} 3. e3 {[%emt 0:00:13]} g5 {[%emt 0:00:56]} 4. Bxg5 {[%emt 0:01:52]} Qa5+ {[%emt 0:00:18]} 5. Qd2 {[%emt 0:00:39]} Qxg5 {[%emt 0:00:08]} 6. Nf3 {[%emt 0:00:16]} Qg7 {[%emt 0:03:05]} 7. Nc3 {[%emt 0:00:46]} d5 {[%emt 0:00:34]} 8. O-O-O {[%emt 0:01:48]} Bf5 {[%emt 0:00:45]} 9. Nh4 {[%emt 0:08:54]} Bg6 {[%emt 0:00:41]} 10. Nxg6 {[%emt 0:00:25]} hxg6 {[%emt 0:00:08]} 11. Bd3 {[%emt 0:01:29]} e6 {[%emt 0:00:52]} 12. Kb1 {[%emt 0:01:32]} Nbd7 {[%emt 0:02:22]} 13. Qe2 {[%emt 0:02:55]} O-O-O {[%emt 0:02:35]} 14. e4 {[%emt 0:00:50]} dxe4 {[%emt 0:00:14]} 15. Nxe4 {[%emt 0:00:29]} Nxe4 {[%emt 0:00:17]} 16. Bxe4 {[%emt 0:00:02]} Nb6 {[%emt 0:00:33]} 17. c3 {[%emt 0:01:06]} Kb8 {[%emt 0:10:10]} 18. h3 {[%emt 0:00:35]} Bd6 {[%emt 0:00:45]} 19. Rhe1 {[%emt 0:00:53]} Rhe8 {[%emt 0:00:47]} 20. Qc2 {[%emt 0:01:29]} Bc7 {[%emt 0:00:52]} 21. Qb3 {[%emt 0:00:29]} Qf6 {[%emt 0:03:03]} 22. a4 {[%emt 0:00:43]} Qg5 {[%emt 0:02:12]} 23. Kc2 {[%emt 0:07:47]} Qa5 {[%emt 0:03:29]} 24. Ra1 {[%emt 0:00:03]} f5 {[%emt 0:00:55]} 25. Bf3 {[%emt 0:00:14]} Nd5 {[%emt 0:00:36]} 26. Qc4 {[%emt 0:01:21]} Bd6 {[%emt 0:02:36]} 27. b4 {[%emt 0:03:37]} Qc7 {[%emt 0:00:05]} 28. Qb3 {[%emt 0:00:52]} e5 {[%emt 0:01:06]} 29. b5 {[%emt 0:04:58]} e4 {[%emt 0:02:22]} 30. Be2 {[%emt 0:00:24]} Rc8 {[%emt 0:00:15]} 31. c4 {[%emt 0:03:02]} Nf4 {[%emt 0:09:56]} 32. Bf1 {[%emt 0:00:18]} c5 {[%emt 0:00:04]} 33. d5 {[%emt 0:02:41]} Be5 {[%emt 0:01:47]} 34. Ra2 {[%emt 0:01:29]} Red8 {[%emt 0:03:41]} 35. g3 {[%emt 0:00:48]} Nxd5 {[%emt 0:01:12]} 36. cxd5 {[%emt 0:00:24]} c4 {[%emt 0:00:02]} 37. Qb4 {[%emt 0:04:52]} Rxd5 {[%emt 0:00:03]} 38. Be2 {[%emt 0:22:48]} Qd7 {[%emt 0:04:43]} 39. Kc1 {[%emt 0:08:58]} c3 {[%emt 0:04:14]} 40. Qb3 {[%emt 0:07:22]} Rd8 {[%emt 0:05:59]} 41. h4 {[%emt 0:06:17]} Rd2 {[%emt 0:00:39]} 42. Rd1 {[%emt 0:00:55]} Rxd1+ {[%emt 0:00:39]} 43. Qxd1 {[%emt 0:00:28]} Qe7 {[%emt 0:00:26]} 44. Qb3 {[%emt 0:00:43]} Bg7 {[%emt 0:00:16]} 45. b6 {[%emt 0:01:51]} Qc5 {[%emt 0:00:41]} 46. bxa7+ {[%emt 0:00:37]} Kxa7 {[%emt 0:00:01]} 47. Qb5 {[%emt 0:00:45]} Bh6+ {[%emt 0:02:04]} 48. Kb1 {[%emt 0:00:28]} Qc7 {[%emt 0:00:12]} 49. Qc4 {[%emt 0:01:13]} Qe5 {[%emt 0:01:35]} 50. Qb5 {[%emt 0:00:40]} Rd5 {[%emt 0:00:02]} 51. Qc4 {[%emt 0:01:17]} Rc5 {[%emt 0:01:13]} 52. Qb4 {[%emt 0:00:10]} Bd2 {[%emt 0:00:32]} 53. Rc2 {[%emt 0:00:25]} Qd5 {[%emt 0:01:46]} 54. Qa3 {[%emt 0:00:46]} Qd4 {[%emt 0:00:14]} 55. f3 {[%emt 0:00:29]} Ra5 {[%emt 0:00:34]} 56. Ra2 {[%emt 0:00:51]} exf3 {[%emt 0:00:41]} 57. Bxf3 {[%emt 0:00:05]} Qd3+ {[%emt 0:00:16]} 58. Rc2 {[%emt 0:00:35]} Qxf3 {[%emt 0:01:31]} 0-1

[Event "AUT-ch U18 Boys 2022"]
[Site "Sankt Veit an der Glan"]
[Date "2022.04.11"]
[Round "3"]
[White "Marte, Lukas"]
[Black "Buchegger, Fridolin"]
[Result "1/2-1/2"]
[ECO "C54"]
[WhiteElo "1614"]
[BlackElo "2010"]
[Annotator "NA RC"]
[PlyCount "123"]
[EventDate "2022.04.11"]
[EventType "swiss"]
[EventCountry "AUT"]
[SourceTitle "playchess.com"]
[Source "ChessBase"]
[SourceQuality "1"]
[TimeControl "5400+30"]

1. e4 {[%emt 0:00:04]} e5 {[%emt 0:00:05]} 2. Nf3 {[%emt 0:00:05]} Nc6 {[%emt 0:00:09]} 3. Bc4 {[%emt 0:00:05]} Bc5 {[%emt 0:00:07]} 4. c3 {[%emt 0:00:06]} Nf6 {[%emt 0:00:07]} 5. d3 {[%emt 0:00:04]} d6 {[%emt 0:00:16]} 6. O-O {[%emt 0:00:23]} a6 {[%emt 0:00:23]} 7. Bb3 {[%emt 0:00:07]} Ba7 {[%emt 0:00:25]} 8. Nbd2 {[%emt 0:01:07]} O-O {[%emt 0:01:13]} 9. h3 {[%emt 0:02:05]} h6 {[%emt 0:01:33]} 10. Re1 {[%emt 0:00:08]} Re8 {[%emt 0:00:09]} 11. Nf1 {[%emt 0:00:31]} Be6 {[%emt 0:00:18]} 12. Ng3 {[%emt 0:00:32]} d5 {[%emt 0:03:49]} 13. exd5 {[%emt 0:22:26]} Bxd5 {[%emt 0:00:10]} 14. Bxd5 {[%emt 0:02:11]} Nxd5 {[%emt 0:05:53]} 15. Be3 {[%emt 0:01:00]} Nxe3 {[%emt 0:07:00]} 16. fxe3 {[%emt 0:00:06]} Qd5 {[%emt 0:00:28]} 17. c4 {[%emt 0:07:22]} Qe6 {[%emt 0:06:17]} 18. Kh2 {[%emt 0:04:00]} Rad8 {[%emt 0:10:59]} 19. Qb3 {[%emt 0:02:12]} b6 {[%emt 0:01:50]} 20. Rad1 {[%emt 0:04:37]} Qf6 {[%emt 0:09:32]} 21. a4 {[%emt 0:05:07]} Bb8 {[%emt 0:02:15]} 22. Qc3 {[%emt 0:02:34]} a5 {[%emt 0:01:06]} 23. Rf1 {[%emt 0:09:59]} Qg6 {[%emt 0:03:25]} 24. e4 {[%emt 0:04:11]} Nd4 {[%emt 0:00:48]} 25. Qd2 {[%emt 0:01:58]} c6 {[%emt 0:02:24]} 26. Nh4 {[%emt 0:00:39]} Qg5 {[%emt 0:01:55]} 27. Qxg5 {[%emt 0:09:16]} hxg5 {[%emt 0:00:55]} 28. Nf3 {[%emt 0:00:05]} Ne6 {[%emt 0:02:07]} 29. Nf5 {[%emt 0:08:30]} g6 {[%emt 0:03:51]} 30. Ne3 {[%emt 0:00:08]} Kg7 {[%emt 0:01:02]} 31. Ng4 {[%emt 0:00:39]} f6 {[%emt 0:00:15]} 32. Rf2 {[%emt 0:05:25]} Bd6 {[%emt 0:00:34]} 33. Nd2 {[%emt 0:00:25]} Be7 {[%emt 0:01:37]} 34. Nb3 {[%emt 0:00:15]} Rh8 {[%emt 0:03:58]} 35. g3 {[%emt 0:00:13]} Rhf8 {[%emt 0:02:09]} 36. Kg2 {[%emt 0:00:38]} Rd7 {[%emt 0:04:35]} 37. Rf3 {[%emt 0:00:19]} Rfd8 {[%emt 0:01:15]} 38. Kf2 {[%emt 0:00:24]} Bc5+ {[%emt 0:03:03]} 39. Ke2 {[%emt 0:00:52]} Rf7 {[%emt 0:00:32]} 40. Rdf1 {[%emt 0:00:12]} Be7 {[%emt 0:01:12]} 41. Nxe5 {[%emt 0:00:18]} Rff8 {[%emt 0:00:18]} 42. Nxc6 {[%emt 0:00:31]} Rd7 {[%emt 0:00:11]} 43. Nxe7 {[%emt 0:00:25]} Rxe7 {[%emt 0:00:04]} 44. d4 {[%emt 0:00:38]} Rc8 {[%emt 0:01:01]} 45. Kd3 {[%emt 0:00:51]} Rh8 {[%emt 0:01:03]} 46. d5 {[%emt 0:00:44]} Nf8 {[%emt 0:02:09]} 47. g4 {[%emt 0:01:27]} Nd7 {[%emt 0:00:20]} 48. Kd4 {[%emt 0:00:33]} Ne5 {[%emt 0:00:24]} 49. Rc3 {[%emt 0:00:31]} Rd7 {[%emt 0:00:45]} 50. Rh1 {[%emt 0:01:19]} Nxg4 {[%emt 0:00:19]} 51. c5 {[%emt 0:00:29]} Re7 {[%emt 0:02:56]} 52. Rf1 {[%emt 0:02:36]} bxc5+ {[%emt 0:02:12]} 53. Nxc5 {[%emt 0:00:23]} Ne5 {[%emt 0:00:05]} 54. Ne6+ {[%emt 0:01:01]} Kf7 {[%emt 0:00:11]} 55. Nxg5+ {[%emt 0:00:25]} Kg7 {[%emt 0:00:10]} 56. Ne6+ {[%emt 0:00:20]} Kf7 {[%emt 0:00:12]} 57. Rfc1 {[%emt 0:00:33]} g5 {[%emt 0:00:36]} 58. Kc5 {[%emt 0:01:26]} Rc8+ {[%emt 0:00:45]} 59. Kb5 {[%emt 0:01:19]} Rb8+ {[%emt 0:00:08]} 60. Ka6 {[%emt 0:00:51]} Ra8+ {[%emt 0:00:27]} 61. Kb6 {[%emt 0:00:17]} Rb8+ {[%emt 0:00:12]} 62. Ka6 {[%emt 0:01:15]} 1/2-1/2

[Event "AUT-ch U18 Boys 2022"]
[Site "Sankt Veit an der Glan"]
[Date "2022.04.11"]
[Round "3"]
[White "Liotta, Marcel"]
[Black "Loreth, Thomas"]
[Result "0-1"]
[ECO "D04"]
[WhiteElo "1551"]
[BlackElo "1628"]
[Annotator "NA RC"]
[PlyCount "70"]
[EventDate "2022.04.11"]
[EventType "swiss"]
[EventCountry "AUT"]
[SourceTitle "playchess.com"]
[Source "ChessBase"]
[SourceQuality "1"]
[TimeControl "5400+30"]

1. d4 {[%emt 0:00:01]} d5 {[%emt 0:00:04]} 2. Nf3 {[%emt 0:00:04]} Nf6 {[%emt 0:00:19]} 3. e3 {[%emt 0:00:06]} c5 {[%emt 0:00:14]} 4. b3 {[%emt 0:00:07]} Bg4 {[%emt 0:01:11]} 5. Nbd2 {[%emt 0:00:27]} e6 {[%emt 0:00:14]} 6. Bb2 {[%emt 0:00:04]} a6 {[%emt 0:00:32]} 7. Bd3 {[%emt 0:02:01]} Nc6 {[%emt 0:00:20]} 8. a3 {[%emt 0:00:05]} Qc7 {[%emt 0:01:28]} 9. O-O {[%emt 0:00:14]} cxd4 {[%emt 0:01:08]} 10. exd4 {[%emt 0:00:05]} Bd6 {[%emt 0:00:15]} 11. Qe1 {[%emt 0:00:08]} O-O {[%emt 0:00:38]} 12. Ne5 {[%emt 0:00:41]} Bh5 {[%emt 0:05:05]} 13. f4 {[%emt 0:00:15]} Bg6 {[%emt 0:00:51]} 14. Qg3 {[%emt 0:13:58]} Ne7 {[%emt 0:04:15]} 15. Qh3 {[%emt 0:03:20]} Bxd3 {[%emt 0:00:59]} 16. Qxd3 {[%emt 0:00:06]} Rac8 {[%emt 0:00:54]} 17. Rac1 {[%emt 0:00:16]} b5 {[%emt 0:02:14]} 18. Rf3 {[%emt 0:00:14]} Ng6 {[%emt 0:00:36]} 19. Qe2 {[%emt 0:02:07]} Qa5 {[%emt 0:01:16]} 20. b4 {[%emt 0:00:53]} Qb6 {[%emt 0:00:09]} 21. Kh1 {[%emt 0:00:11]} Rc7 {[%emt 0:00:49]} 22. f5 {[%emt 0:02:22]} Nh4 {[%emt 0:00:46]} 23. Rf4 {[%emt 0:01:50]} Nxf5 {[%emt 0:00:56]} 24. g4 {[%emt 0:00:21]} Ne7 {[%emt 0:00:17]} 25. g5 {[%emt 0:00:28]} Bxe5 {[%emt 0:00:17]} 26. dxe5 {[%emt 0:00:53]} Nd7 {[%emt 0:00:26]} 27. Nf3 {[%emt 0:02:18]} Rfc8 {[%emt 0:00:34]} 28. Nd4 {[%emt 0:09:34]} Ng6 {[%emt 0:02:23]} 29. Rcf1 {[%emt 0:27:19]} Nxf4 {[%emt 0:00:25]} 30. Rxf4 {[%emt 0:00:05]} Nf8 {[%emt 0:02:26]} 31. h4 {[%emt 0:05:01]} Rc4 {[%emt 0:01:06]} 32. h5 {[%emt 0:04:01]} Qc7 {[%emt 0:00:04]} 33. Rf6 {[%emt 0:15:37]} Rxc2 {[%emt 0:00:52]} 34. Qg4 {[%emt 0:11:11]} Rxb2 {[%emt 0:00:31]} 35. g6 {[%emt 0:00:27]} Qc1+ {[%emt 0:00:05]} 0-1

[Event "AUT-ch U18 Boys 2022"]
[Site "Sankt Veit an der Glan"]
[Date "2022.04.11"]
[Round "3"]
[White "Pribozic, Manuel"]
[Black "Koestner, Laurin"]
[Result "1-0"]
[ECO "B90"]
[WhiteElo "1543"]
[BlackElo "1746"]
[Annotator "NA RC"]
[PlyCount "91"]
[EventDate "2022.04.11"]
[EventType "swiss"]
[EventCountry "AUT"]
[SourceTitle "playchess.com"]
[Source "ChessBase"]
[SourceQuality "1"]
[TimeControl "5400+30"]

1. e4 {[%emt 0:00:29]} c5 {[%emt 0:00:26]} 2. Nf3 {[%emt 0:00:39]} d6 {[%emt 0:00:06]} 3. Nc3 {[%emt 0:00:45]} Nf6 {[%emt 0:00:06]} 4. d4 {[%emt 0:00:44]} cxd4 {[%emt 0:00:02]} 5. Nxd4 {[%emt 0:00:41]} a6 {[%emt 0:00:01]} 6. f3 {[%emt 0:01:12]} e5 {[%emt 0:00:02]} 7. Nb3 {[%emt 0:01:04]} Be6 {[%emt 0:01:04]} 8. Be3 {[%emt 0:01:03]} Be7 {[%emt 0:03:57]} 9. Qd2 {[%emt 0:03:07]} Nbd7 {[%emt 0:04:53]} 10. O-O-O {[%emt 0:10:21]} Rc8 {[%emt 0:01:36]} 11. Kb1 {[%emt 0:12:02]} Qc7 {[%emt 0:02:39]} 12. g4 {[%emt 0:11:49]} b5 {[%emt 0:01:21]} 13. Nd5 {[%emt 0:09:05]} Bxd5 {[%emt 0:03:51]} 14. exd5 {[%emt 0:02:12]} Nb6 {[%emt 0:18:13]} 15. Bxb6 {[%emt 0:14:39]} Qxb6 {[%emt 0:00:41]} 16. Bg2 {[%emt 0:07:19]} O-O {[%emt 0:19:48]} 17. h4 {[%emt 0:02:40]} Rc4 {[%emt 0:15:50]} 18. h5 {[%emt 0:05:49]} Rfc8 {[%emt 0:00:01]} 19. Rc1 {[%emt 0:00:18]} e4 {[%emt 0:11:05]} 20. fxe4 {[%emt 0:08:35]} Nxg4 {[%emt 0:00:18]} 21. Bh3 {[%emt 0:01:10]} Rxe4 {[%emt 0:02:06]} 22. Rhe1 {[%emt 0:01:24]} Rcc4 {[%emt 0:02:06]} 23. Bxg4 {[%emt 0:00:37]} h6 {[%emt 0:02:49]} 24. Rxe4 {[%emt 0:01:04]} Rxe4 {[%emt 0:00:01]} 25. Bf3 {[%emt 0:00:58]} Bg5 {[%emt 0:00:21]} 26. Qc3 {[%emt 0:01:01]} Rc4 {[%emt 0:00:23]} 27. Qe1 {[%emt 0:00:25]} Rc8 {[%emt 0:02:37]} 28. Rd1 {[%emt 0:00:38]} Qc7 {[%emt 0:00:06]} 29. Qe2 {[%emt 0:00:22]} a5 {[%emt 0:00:37]} 30. Nd4 {[%emt 0:00:50]} b4 {[%emt 0:00:33]} 31. Nc6 {[%emt 0:00:23]} Ra8 {[%emt 0:01:11]} 32. Qd3 {[%emt 0:01:17]} Qb6 {[%emt 0:00:44]} 33. Qd4 {[%emt 0:00:24]} Qb5 {[%emt 0:00:33]} 34. Qd3 {[%emt 0:00:40]} Qb6 {[%emt 0:00:07]} 35. Qd4 {[%emt 0:00:08]} Qb5 {[%emt 0:00:05]} 36. Qf2 {[%emt 0:00:09]} a4 {[%emt 0:00:42]} 37. Qd4 {[%emt 0:00:50]} b3 {[%emt 0:00:20]} 38. Qb4 {[%emt 0:00:14]} bxc2+ {[%emt 0:00:48]} 39. Kxc2 {[%emt 0:00:09]} Qa6 {[%emt 0:00:21]} 40. a3 {[%emt 0:00:40]} Qc8 {[%emt 0:00:15]} 41. Kb1 {[%emt 0:01:10]} Qf5+ {[%emt 0:00:26]} 42. Qe4 {[%emt 0:00:16]} Qd7 {[%emt 0:00:33]} 43. Bg4 {[%emt 0:00:24]} Qb7 {[%emt 0:00:12]} 44. Qb4 {[%emt 0:00:22]} Qa6 {[%emt 0:00:24]} 45. Qxd6 {[%emt 0:01:08]} Qc4 {[%emt 0:00:08]} 46. Qb4 {[%emt 0:00:03]} 1-0